[Event "Live Chess"]
[Site "Chess.com"]
[Date "2023.05.20"]
[Round "-"]
[White "WilliamofOrange16th"]
[Black "YF22Raptor"]
[Result "0-1"]
[WhiteElo "1881"]
[BlackElo "1009"]
[TimeControl "300"]
[EndTime "10:32:33 PDT"]
[Termination "YF22Raptor won by checkmate"]

1. e4 {[%clk 0:04:58.3]} 1... c6 {[%clk 0:04:59.4]} 2. d4 {[%clk 0:04:57]} 2...
d5 {[%clk 0:04:58.9]} 3. exd5 {[%clk 0:04:56.5]} 3... cxd5 {[%clk 0:04:58.5]} 4.
c4 {[%clk 0:04:56.2]} 4... Nc6 {[%clk 0:04:57.9]} 5. Nf3 {[%clk 0:04:54.2]} 5...
Nf6 {[%clk 0:04:56.2]} 6. Nc3 {[%clk 0:04:52.6]} 6... Bg4 {[%clk 0:04:54.8]} 7.
cxd5 {[%clk 0:04:49.3]} 7... Bxf3 {[%clk 0:04:52.8]} 8. Qxf3 {[%clk 0:04:46.8]}
8... Nxd4 {[%clk 0:04:51.3]} 9. Qd3 {[%clk 0:04:35.5]} 9... Qb6 {[%clk
0:04:40.3]} 10. b3 {[%clk 0:04:13.9]} 10... Rd8 {[%clk 0:04:33.1]} 11. Be3
{[%clk 0:04:02.7]} 11... Nxd5 {[%clk 0:04:22.9]} 12. Nxd5 {[%clk 0:04:00.9]}
12... Rxd5 {[%clk 0:04:20.4]} 13. Qc4 {[%clk 0:03:28.3]} 13... e6 {[%clk
0:03:56.1]} 14. Qc8+ {[%clk 0:03:18.6]} 14... Rd8 {[%clk 0:03:54.3]} 15. Qc4
{[%clk 0:03:07.2]} 15... Bb4+ {[%clk 0:03:43.9]} 16. Bd2 {[%clk 0:03:05.3]}
16... Nf3+ {[%clk 0:03:17.6]} 17. gxf3 {[%clk 0:03:00.4]} 17... Bxd2+ {[%clk
0:03:16.1]} 18. Ke2 {[%clk 0:02:58.4]} 18... O-O {[%clk 0:03:05.2]} 19. Bh3
{[%clk 0:02:46.9]} 19... Bh6 {[%clk 0:03:00]} 20. Rad1 {[%clk 0:02:41]} 20...
Rxd1 {[%clk 0:02:53.5]} 21. Rxd1 {[%clk 0:02:39.8]} 21... Rd8 {[%clk 0:02:52.6]}
22. Rxd8+ {[%clk 0:02:32.4]} 22... Qxd8 {[%clk 0:02:51.4]} 23. f4 {[%clk
0:02:30.2]} 23... g6 {[%clk 0:02:41.9]} 24. Bg2 {[%clk 0:02:25.3]} 24... Qa5
{[%clk 0:02:37]} 25. a4 {[%clk 0:02:22.1]} 25... Qf5 {[%clk 0:02:28.5]} 26. Bxb7
{[%clk 0:02:15.3]} 26... Bxf4 {[%clk 0:02:24.9]} 27. Be4 {[%clk 0:02:08.9]}
27... Qg4+ {[%clk 0:02:14.4]} 28. Bf3 {[%clk 0:02:03.5]} 28... Qh4 {[%clk
0:02:06.5]} 29. Qc8+ {[%clk 0:01:59.3]} 29... Kg7 {[%clk 0:02:04.8]} 30. Qc3+
{[%clk 0:01:58]} 30... Kg8 {[%clk 0:02:02.1]} 31. Qc8+ {[%clk 0:01:52.8]} 31...
Kg7 {[%clk 0:01:59.6]} 32. Qc3+ {[%clk 0:01:52.4]} 32... Qf6 {[%clk 0:01:56.8]}
33. Qxf6+ {[%clk 0:01:45]} 33... Kxf6 {[%clk 0:01:55.8]} 34. h3 {[%clk
0:01:44.6]} 34... h5 {[%clk 0:01:49]} 35. Kd3 {[%clk 0:01:43.9]} 35... Bc7
{[%clk 0:01:44.2]} 36. Kc4 {[%clk 0:01:42.2]} 36... Bb6 {[%clk 0:01:42.5]} 37.
b4 {[%clk 0:01:39.7]} 37... Bxf2 {[%clk 0:01:40.5]} 38. a5 {[%clk 0:01:38.9]}
38... g5 {[%clk 0:01:38.4]} 39. b5 {[%clk 0:01:38]} 39... Kf5 {[%clk 0:01:37.3]}
40. Kd3 {[%clk 0:01:37]} 40... g4 {[%clk 0:01:35.9]} 41. hxg4+ {[%clk
0:01:36.1]} 41... hxg4 {[%clk 0:01:35.3]} 42. Bg2 {[%clk 0:01:34.1]} 42... g3
{[%clk 0:01:32.3]} 43. Ke2 {[%clk 0:01:26.9]} 43... Kg4 {[%clk 0:01:24.5]} 44.
Bf1 {[%clk 0:01:14.7]} 44... f5 {[%clk 0:01:22.3]} 45. Bg2 {[%clk 0:01:12.5]}
45... f4 {[%clk 0:01:20.9]} 46. Bf3+ {[%clk 0:01:09.4]} 46... Kf5 {[%clk
0:01:18.4]} 47. Kd3 {[%clk 0:01:05.5]} 47... e5 {[%clk 0:01:17.1]} 48. Bg2
{[%clk 0:00:56.4]} 48... Kg4 {[%clk 0:01:12.6]} 49. Ke4 {[%clk 0:00:55.1]} 49...
Bd4 {[%clk 0:01:08]} 50. a6 {[%clk 0:00:44.3]} 50... Kg5 {[%clk 0:01:02.2]} 51.
Kf3 {[%clk 0:00:34.7]} 51... Kh4 {[%clk 0:00:59.3]} 52. Ke4 {[%clk 0:00:30.9]}
52... Kg4 {[%clk 0:00:58]} 53. Bh1 {[%clk 0:00:24]} 53... Kh3 {[%clk 0:00:53.1]}
54. Kf3 {[%clk 0:00:23.2]} 54... e4+ {[%clk 0:00:46.7]} 55. Kxe4 {[%clk
0:00:21.9]} 55... g2 {[%clk 0:00:43.1]} 56. Bxg2+ {[%clk 0:00:19.4]} 56... Kxg2
{[%clk 0:00:42.2]} 57. Kxf4 {[%clk 0:00:19.3]} 57... Bb6 {[%clk 0:00:40.6]} 58.
Ke4 {[%clk 0:00:19.2]} 58... Kg3 {[%clk 0:00:39.2]} 59. Kd5 {[%clk 0:00:19.1]}
59... Kf4 {[%clk 0:00:38.6]} 60. Kc6 {[%clk 0:00:17.1]} 60... Ke5 {[%clk
0:00:38.2]} 61. Kb7 {[%clk 0:00:15.8]} 61... Kd5 {[%clk 0:00:37.3]} 62. Kc8
{[%clk 0:00:13.5]} 62... Kc5 {[%clk 0:00:36.6]} 63. Kb7 {[%clk 0:00:12.9]} 63...
Kxb5 {[%clk 0:00:35.6]} 64. Kc8 {[%clk 0:00:12.3]} 64... Kxa6 {[%clk 0:00:34.8]}
65. Kd7 {[%clk 0:00:12.2]} 65... Kb5 {[%clk 0:00:34.2]} 66. Kd6 {[%clk
0:00:11.5]} 66... Kb4 {[%clk 0:00:33.5]} 67. Kd5 {[%clk 0:00:11.3]} 67... a5
{[%clk 0:00:30.9]} 68. Ke4 {[%clk 0:00:11.2]} 68... a4 {[%clk 0:00:30.2]} 69.
Kd3 {[%clk 0:00:11.1]} 69... a3 {[%clk 0:00:29.8]} 70. Kc2 {[%clk 0:00:11]}
70... Bd4 {[%clk 0:00:28.1]} 71. Kb1 {[%clk 0:00:10.9]} 71... Kb3 {[%clk
0:00:27.1]} 72. Kc1 {[%clk 0:00:09.6]} 72... a2 {[%clk 0:00:26.1]} 73. Kd2
{[%clk 0:00:09.5]} 73... a1=Q {[%clk 0:00:24.9]} 74. Kd3 {[%clk 0:00:09.4]}
74... Qc3+ {[%clk 0:00:24.1]} 75. Ke4 {[%clk 0:00:09.3]} 75... Kc4 {[%clk
0:00:23.2]} 76. Kf5 {[%clk 0:00:08.2]} 76... Be3 {[%clk 0:00:22.3]} 77. Ke6
{[%clk 0:00:08.1]} 77... Bc1 {[%clk 0:00:21.8]} 78. Kd6 {[%clk 0:00:06.8]} 78...
Bb2 {[%clk 0:00:21.7]} 79. Ke6 {[%clk 0:00:06.5]} 79... Qd4 {[%clk 0:00:20.7]}
80. Kf5 {[%clk 0:00:06.4]} 80... Kd5 {[%clk 0:00:18.3]} 81. Kg6 {[%clk
0:00:05.2]} 81... Qe4+ {[%clk 0:00:17.9]} 82. Kf7 {[%clk 0:00:04.5]} 82... Kd6
{[%clk 0:00:16.8]} 83. Kf8 {[%clk 0:00:01.8]} 83... Qe7+ {[%clk 0:00:15.9]} 84.
Kg8 {[%clk 0:00:00.4]} 84... Qg7# {[%clk 0:00:15.1]} 0-1

[Event "Live Chess"]
[Site "Chess.com"]
[Date "2023.05.20"]
[Round "-"]
[White "Wlzard-1"]
[Black "alexlines8"]
[Result "1-0"]
[WhiteElo "986"]
[BlackElo "1248"]
[TimeControl "300"]
[EndTime "10:32:38 PDT"]
[Termination "Wlzard-1 won by resignation"]

1. Nf3 {[%clk 0:04:57.6]} 1... c6 {[%clk 0:04:57.8]} 2. d4 {[%clk 0:04:55.9]}
2... d5 {[%clk 0:04:56.7]} 3. Nc3 {[%clk 0:04:54]} 3... Nf6 {[%clk 0:04:55.2]}
4. g3 {[%clk 0:04:51.4]} 4... Bg4 {[%clk 0:04:51.3]} 5. Bg2 {[%clk 0:04:50.3]}
5... e6 {[%clk 0:04:49.4]} 6. O-O {[%clk 0:04:45.5]} 6... Bb4 {[%clk 0:04:47.4]}
7. Qd3 {[%clk 0:04:35.7]} 7... Bxc3 {[%clk 0:04:39.6]} 8. Qxc3 {[%clk
0:04:33.4]} 8... Ne4 {[%clk 0:04:37]} 9. Qd3 {[%clk 0:04:25.5]} 9... O-O {[%clk
0:04:34.3]} 10. Ne5 {[%clk 0:04:23.9]} 10... Bf5 {[%clk 0:04:27.1]} 11. Bxe4
{[%clk 0:04:05.1]} 11... Bxe4 {[%clk 0:04:23.5]} 12. Qc3 {[%clk 0:04:03.5]}
12... f6 {[%clk 0:04:07.8]} 13. Ng4 {[%clk 0:03:58.6]} 13... Qd6 {[%clk
0:03:52.1]} 14. Bf4 {[%clk 0:03:54.9]} 14... Qe7 {[%clk 0:03:48.4]} 15. f3
{[%clk 0:03:43.7]} 15... Bf5 {[%clk 0:03:38.8]} 16. Ne3 {[%clk 0:03:42]} 16...
Nd7 {[%clk 0:03:24.2]} 17. Nxf5 {[%clk 0:03:38]} 17... exf5 {[%clk 0:03:24.1]}
18. Qd3 {[%clk 0:03:25.5]} 18... Nb6 {[%clk 0:03:13.5]} 19. b3 {[%clk
0:03:21.6]} 19... Rac8 {[%clk 0:03:08]} 20. c3 {[%clk 0:03:07.7]} 20... Rfe8
{[%clk 0:02:56.7]} 21. Rfe1 {[%clk 0:03:06.4]} 21... c5 {[%clk 0:02:47.5]} 22.
e3 {[%clk 0:02:52.4]} 22... cxd4 {[%clk 0:02:34.3]} 23. exd4 {[%clk 0:02:50.1]}
23... Qd7 {[%clk 0:02:14.1]} 24. Kf2 {[%clk 0:02:42.3]} 24... Kf7 {[%clk
0:02:01.2]} 25. Bd2 {[%clk 0:02:39.2]} 25... Qd6 {[%clk 0:01:55.4]} 26. Qb5
{[%clk 0:02:27.1]} 26... Rxe1 {[%clk 0:01:40.3]} 27. Rxe1 {[%clk 0:02:24.2]}
27... f4 {[%clk 0:01:28.7]} 28. Bxf4 {[%clk 0:02:22.4]} 28... Qc6 {[%clk
0:01:15.4]} 29. Qd3 {[%clk 0:02:10.1]} 29... Qxc3 {[%clk 0:00:55.1]} 30. Qe2
{[%clk 0:02:03.7]} 30... Qxd4+ {[%clk 0:00:47.1]} 31. Kg2 {[%clk 0:01:57.3]}
31... Qc5 {[%clk 0:00:20.4]} 32. Qe6+ {[%clk 0:01:53.7]} 32... Kf8 {[%clk
0:00:16]} 33. Bd6+ {[%clk 0:01:51]} 33... Qxd6 {[%clk 0:00:13.4]} 34. Qxd6+
{[%clk 0:01:49.8]} 1-0

[Event "Live Chess"]
[Site "Chess.com"]
[Date "2023.05.20"]
[Round "-"]
[White "PiotrD11"]
[Black "matt1979"]
[Result "1-0"]
[WhiteElo "1331"]
[BlackElo "1460"]
[TimeControl "300"]
[EndTime "10:32:52 PDT"]
[Termination "PiotrD11 won by resignation"]

1. e4 {[%clk 0:04:57.8]} 1... g6 {[%clk 0:04:58]} 2. d4 {[%clk 0:04:56.3]} 2...
Bg7 {[%clk 0:04:55.6]} 3. Nf3 {[%clk 0:04:56]} 3... d6 {[%clk 0:04:53.2]} 4. h3
{[%clk 0:04:53.9]} 4... b6 {[%clk 0:04:51.1]} 5. c3 {[%clk 0:04:51.6]} 5... Bb7
{[%clk 0:04:49.9]} 6. Bd3 {[%clk 0:04:49.1]} 6... e6 {[%clk 0:04:46.3]} 7. O-O
{[%clk 0:04:48.5]} 7... Nd7 {[%clk 0:04:44.3]} 8. Be3 {[%clk 0:04:47.8]} 8... c5
{[%clk 0:04:38.2]} 9. Qd2 {[%clk 0:04:44.3]} 9... h6 {[%clk 0:04:28.3]} 10. Re1
{[%clk 0:04:26.4]} 10... Ne7 {[%clk 0:04:20.3]} 11. a4 {[%clk 0:04:23.5]} 11...
a6 {[%clk 0:04:16.8]} 12. Na3 {[%clk 0:04:21.9]} 12... O-O {[%clk 0:04:00]} 13.
Bxh6 {[%clk 0:04:19]} 13... Rc8 {[%clk 0:03:50.4]} 14. Nc4 {[%clk 0:04:12.4]}
14... d5 {[%clk 0:03:44.8]} 15. Nd6 {[%clk 0:04:08.7]} 15... Rc7 {[%clk
0:03:41.3]} 16. Nxb7 {[%clk 0:04:06.1]} 16... Rxb7 {[%clk 0:03:40.3]} 17. Bxg7
{[%clk 0:04:04.5]} 17... Kxg7 {[%clk 0:03:38.9]} 18. exd5 {[%clk 0:03:45.4]}
18... Nxd5 {[%clk 0:03:33.9]} 19. Ne5 {[%clk 0:03:43.5]} 19... Nxe5 {[%clk
0:03:29.7]} 20. Rxe5 {[%clk 0:03:39.5]} 20... Qd6 {[%clk 0:03:20.7]} 21. Bxa6
{[%clk 0:03:23.6]} 21... Rc7 {[%clk 0:03:12.6]} 22. Bd3 {[%clk 0:03:11.4]} 22...
f6 {[%clk 0:02:59.2]} 23. Re4 {[%clk 0:02:44.8]} 23... f5 {[%clk 0:02:54.2]} 24.
Rh4 {[%clk 0:02:41.9]} 24... Kf6 {[%clk 0:02:46.2]} 25. Rh6 {[%clk 0:02:23.8]}
25... Rff7 {[%clk 0:02:41.3]} 26. h4 {[%clk 0:02:21.5]} 26... Rh7 {[%clk
0:02:37.6]} 27. Qg5+ {[%clk 0:02:19]} 27... Kg7 {[%clk 0:02:32.7]} 28. Qxg6+
{[%clk 0:02:16.2]} 1-0

[Event "Live Chess"]
[Site "Chess.com"]
[Date "2023.05.20"]
[Round "-"]
[White "Tema1107"]
[Black "mattihelenius2"]
[Result "1-0"]
[WhiteElo "1965"]
[BlackElo "443"]
[TimeControl "300"]
[EndTime "10:32:59 PDT"]
[Termination "Tema1107 won by checkmate"]

1. d4 {[%clk 0:04:58.8]} 1... d6 {[%clk 0:04:57.7]} 2. c4 {[%clk 0:04:57.8]}
2... Nc6 {[%clk 0:04:56.7]} 3. Nc3 {[%clk 0:04:56.8]} 3... Bf5 {[%clk
0:04:52.1]} 4. g3 {[%clk 0:04:55.6]} 4... Qd7 {[%clk 0:04:46.7]} 5. Bg2 {[%clk
0:04:54.1]} 5... Nf6 {[%clk 0:04:45.6]} 6. Nf3 {[%clk 0:04:51]} 6... Ne4 {[%clk
0:04:37.7]} 7. Nxe4 {[%clk 0:04:48.1]} 7... Bxe4 {[%clk 0:04:36.9]} 8. O-O
{[%clk 0:04:47.5]} 8... e5 {[%clk 0:04:26.2]} 9. d5 {[%clk 0:04:35.4]} 9... Nd4
{[%clk 0:04:22.9]} 10. Nxd4 {[%clk 0:04:29.2]} 10... exd4 {[%clk 0:04:17.7]} 11.
Bxe4 {[%clk 0:04:27.5]} 11... O-O-O {[%clk 0:04:12.2]} 12. Qxd4 {[%clk
0:04:24.2]} 12... Qh3 {[%clk 0:04:06.4]} 13. Qxa7 {[%clk 0:04:16.8]} 13... Kd7
{[%clk 0:04:04.1]} 14. Qxb7 {[%clk 0:04:15]} 14... Rc8 {[%clk 0:03:51.5]} 15.
Qc6+ {[%clk 0:04:07.2]} 15... Kd8 {[%clk 0:03:49.2]} 16. a4 {[%clk 0:03:58.3]}
16... f5 {[%clk 0:03:35.9]} 17. Bg2 {[%clk 0:03:50]} 17... Qg4 {[%clk
0:03:33.3]} 18. a5 {[%clk 0:03:38.2]} 18... Qxe2 {[%clk 0:03:29.4]} 19. Bg5+
{[%clk 0:03:35.4]} 19... Be7 {[%clk 0:03:26.6]} 20. Rfe1 {[%clk 0:03:34.6]}
20... Qe5 {[%clk 0:02:24.7]} 21. Rxe5 {[%clk 0:03:31.5]} 21... dxe5 {[%clk
0:02:23.9]} 22. Bxe7+ {[%clk 0:03:28.1]} 22... Kxe7 {[%clk 0:02:22.6]} 23. Qe6+
{[%clk 0:03:27.9]} 23... Kd8 {[%clk 0:02:17.8]} 24. a6 {[%clk 0:03:23.9]} 24...
Re8 {[%clk 0:02:14.5]} 25. Qc6 {[%clk 0:03:22]} 25... Ke7 {[%clk 0:02:12]} 26.
a7 {[%clk 0:03:20.7]} 26... Red8 {[%clk 0:02:09.7]} 27. a8=Q {[%clk 0:03:19]}
27... Rxa8 {[%clk 0:02:08.7]} 28. Rxa8 {[%clk 0:03:18.1]} 28... Rd7 {[%clk
0:02:03]} 29. d6+ {[%clk 0:03:14.5]} 29... cxd6 {[%clk 0:02:01.4]} 30. Bd5
{[%clk 0:03:13.9]} 30... Kf6 {[%clk 0:01:49.8]} 31. Qxd7 {[%clk 0:03:11.4]}
31... Kg5 {[%clk 0:01:48.2]} 32. Qxg7+ {[%clk 0:03:09.4]} 32... Kh5 {[%clk
0:01:46.1]} 33. Bf3# {[%clk 0:03:08.7]} 1-0

[Event "Live Chess"]
[Site "Chess.com"]
[Date "2023.05.20"]
[Round "-"]
[White "JackCheetham1"]
[Black "MaximKris"]
[Result "0-1"]
[WhiteElo "1694"]
[BlackElo "1857"]
[TimeControl "300"]
[EndTime "10:33:07 PDT"]
[Termination "MaximKris won by checkmate"]

1. e4 {[%clk 0:04:58.6]} 1... e5 {[%clk 0:04:58.8]} 2. Nf3 {[%clk 0:04:57.3]}
2... Nc6 {[%clk 0:04:58.1]} 3. Bc4 {[%clk 0:04:54.6]} 3... Bc5 {[%clk 0:04:57]}
4. c3 {[%clk 0:04:51.7]} 4... Nf6 {[%clk 0:04:55.1]} 5. d3 {[%clk 0:04:43.9]}
5... h6 {[%clk 0:04:52.2]} 6. O-O {[%clk 0:04:42.1]} 6... d6 {[%clk 0:04:50.2]}
7. h3 {[%clk 0:04:40.9]} 7... Be6 {[%clk 0:04:48.2]} 8. Bb3 {[%clk 0:04:37.8]}
8... Bxb3 {[%clk 0:04:41.5]} 9. Qxb3 {[%clk 0:04:35.9]} 9... Na5 {[%clk
0:04:34.5]} 10. Qb5+ {[%clk 0:04:34]} 10... c6 {[%clk 0:04:33.7]} 11. Qa4 {[%clk
0:04:25.9]} 11... b5 {[%clk 0:04:32.1]} 12. Qc2 {[%clk 0:04:22.7]} 12... Bb6
{[%clk 0:04:26]} 13. d4 {[%clk 0:04:05.9]} 13... exd4 {[%clk 0:04:20.5]} 14.
cxd4 {[%clk 0:04:05.8]} 14... Qc7 {[%clk 0:04:18.9]} 15. Re1 {[%clk 0:03:51.7]}
15... O-O-O {[%clk 0:04:11.1]} 16. a4 {[%clk 0:03:45.6]} 16... Nb7 {[%clk
0:03:49.3]} 17. Bf4 {[%clk 0:03:38.9]} 17... g5 {[%clk 0:03:42.2]} 18. Bh2
{[%clk 0:03:36.5]} 18... g4 {[%clk 0:03:21.4]} 19. hxg4 {[%clk 0:03:21.6]} 19...
Nxg4 {[%clk 0:03:21.3]} 20. Bg3 {[%clk 0:03:20.6]} 20... Rhg8 {[%clk 0:03:16.1]}
21. e5 {[%clk 0:03:14.5]} 21... dxe5 {[%clk 0:03:13.1]} 22. dxe5 {[%clk
0:02:54]} 22... Qd7 {[%clk 0:02:40.8]} 23. axb5 {[%clk 0:02:41.6]} 23... Nxf2
{[%clk 0:02:24.9]} 24. bxc6 {[%clk 0:02:19.8]} 24... Qg4 {[%clk 0:01:50.8]} 25.
cxb7+ {[%clk 0:02:15.2]} 25... Kxb7 {[%clk 0:01:47.7]} 26. Nc3 {[%clk
0:00:31.1]} 26... Nh3+ {[%clk 0:01:26]} 27. Kh1 {[%clk 0:00:26]} 27... Qxg3
{[%clk 0:01:10.3]} 28. Qe4+ {[%clk 0:00:20.7]} 28... Kb8 {[%clk 0:01:06.9]} 29.
Re2 {[%clk 0:00:17.6]} 29... Rg4 {[%clk 0:00:59.5]} 30. Qc6 {[%clk 0:00:09.7]}
30... Nf2+ {[%clk 0:00:49.9]} 31. Rxf2 {[%clk 0:00:08.4]} 31... Rh4+ {[%clk
0:00:48.1]} 32. Nxh4 {[%clk 0:00:05.2]} 32... Qxh4+ {[%clk 0:00:48]} 33. Kg1
{[%clk 0:00:04.6]} 33... Qxf2+ {[%clk 0:00:47.4]} 34. Kh1 {[%clk 0:00:03.5]}
34... Qh4# {[%clk 0:00:47.3]} 0-1

[Event "Live Chess"]
[Site "Chess.com"]
[Date "2023.05.20"]
[Round "-"]
[White "SavagePawn7"]
[Black "Greenbecker"]
[Result "0-1"]
[WhiteElo "753"]
[BlackElo "1647"]
[TimeControl "300"]
[EndTime "10:33:17 PDT"]
[Termination "Greenbecker won by resignation"]

1. e4 {[%clk 0:04:56.8]} 1... e6 {[%clk 0:04:59.2]} 2. Bc4 {[%clk 0:04:55.4]}
2... d5 {[%clk 0:04:58.5]} 3. Nf3 {[%clk 0:04:52.9]} 3... dxc4 {[%clk
0:04:57.2]} 4. d3 {[%clk 0:04:44.3]} 4... cxd3 {[%clk 0:04:54.7]} 5. Qxd3 {[%clk
0:04:43.7]} 5... Qxd3 {[%clk 0:04:52.7]} 6. cxd3 {[%clk 0:04:43.6]} 6... Bb4+
{[%clk 0:04:49.2]} 7. Nc3 {[%clk 0:04:41.2]} 7... Nf6 {[%clk 0:04:47.4]} 8. Bf4
{[%clk 0:04:31.1]} 8... c6 {[%clk 0:04:44.7]} 9. Rd1 {[%clk 0:04:25.1]} 9... O-O
{[%clk 0:04:39.4]} 10. a3 {[%clk 0:04:15.2]} 10... Bxc3+ {[%clk 0:04:35.7]} 11.
bxc3 {[%clk 0:04:13.8]} 11... Na6 {[%clk 0:04:34.3]} 12. Bd6 {[%clk 0:04:10.6]}
12... Re8 {[%clk 0:04:30.4]} 13. Ng5 {[%clk 0:04:08.8]} 13... h6 {[%clk
0:04:27.9]} 14. O-O {[%clk 0:04:03.6]} 14... hxg5 {[%clk 0:04:26.4]} 15. Be5
{[%clk 0:04:02.8]} 0-1

[Event "Live Chess"]
[Site "Chess.com"]
[Date "2023.05.20"]
[Round "-"]
[White "ickabod1100"]
[Black "wot-not"]
[Result "0-1"]
[WhiteElo "932"]
[BlackElo "1461"]
[TimeControl "300"]
[EndTime "10:33:34 PDT"]
[Termination "wot-not won by checkmate"]

1. e4 {[%clk 0:04:58.5]} 1... e5 {[%clk 0:04:58.6]} 2. Nf3 {[%clk 0:04:56.6]}
2... d6 {[%clk 0:04:56.1]} 3. d4 {[%clk 0:04:55.8]} 3... f5 {[%clk 0:04:55.2]}
4. dxe5 {[%clk 0:04:52.8]} 4... fxe4 {[%clk 0:04:54]} 5. Bg5 {[%clk 0:04:44.7]}
5... Be7 {[%clk 0:04:49.4]} 6. Bxe7 {[%clk 0:04:42.9]} 6... Qxe7 {[%clk
0:04:46.7]} 7. exd6 {[%clk 0:04:38.9]} 7... cxd6 {[%clk 0:04:33]} 8. Bb5+ {[%clk
0:04:32.4]} 8... Nc6 {[%clk 0:04:29.6]} 9. Nd4 {[%clk 0:04:29.9]} 9... Bd7
{[%clk 0:04:21.3]} 10. Nc3 {[%clk 0:04:23.4]} 10... Nf6 {[%clk 0:04:18.4]} 11.
O-O {[%clk 0:04:10.4]} 11... O-O {[%clk 0:04:14.1]} 12. Re1 {[%clk 0:04:08]}
12... d5 {[%clk 0:04:05.9]} 13. Nxc6 {[%clk 0:03:56.5]} 13... bxc6 {[%clk
0:03:57.2]} 14. Be2 {[%clk 0:03:49.1]} 14... Qf7 {[%clk 0:03:52.8]} 15. Rf1
{[%clk 0:03:44.2]} 15... Rab8 {[%clk 0:03:49.7]} 16. b3 {[%clk 0:03:41.9]} 16...
h6 {[%clk 0:03:20.9]} 17. Na4 {[%clk 0:03:35.9]} 17... Qg6 {[%clk 0:03:11.7]}
18. Bh5 {[%clk 0:03:21.2]} 18... Qxh5 {[%clk 0:03:06.7]} 19. Qxh5 {[%clk
0:03:18.7]} 19... Nxh5 {[%clk 0:03:05.9]} 20. Nc5 {[%clk 0:03:15.6]} 20... Bg4
{[%clk 0:03:01.8]} 21. c4 {[%clk 0:03:11.5]} 21... dxc4 {[%clk 0:02:54.6]} 22.
bxc4 {[%clk 0:03:09.5]} 22... Rb2 {[%clk 0:02:25.9]} 23. Nxe4 {[%clk 0:03:06]}
23... Be2 {[%clk 0:02:07.7]} 24. Rfe1 {[%clk 0:03:03.2]} 24... Bxc4 {[%clk
0:02:04.5]} 25. Nd6 {[%clk 0:03:00.8]} 25... Bd5 {[%clk 0:01:58.7]} 26. h3
{[%clk 0:02:58.5]} 26... Rfxf2 {[%clk 0:01:56.1]} 27. Re8+ {[%clk 0:02:51.4]}
27... Kh7 {[%clk 0:01:54.3]} 28. Rae1 {[%clk 0:02:45.7]} 28... Rxg2+ {[%clk
0:01:53.3]} 29. Kf1 {[%clk 0:02:43.6]} 29... Ng3# {[%clk 0:01:52.4]} 0-1